fUSD/lending_fUSD_20240814
["ID","MTS","AMOUNT","RATE_DAILY","PERIOD"]
[334837850,1723607435338,-500.0,0.00013698,2]
[334837851,1723607435349,-1024.41,0.00013698,2]
[334837852,1723607435359,-2173.7,0.00013698,2]
[334837853,1723607435368,-500.0,0.00013698,2]
[334837854,1723607435378,-93.30727932,0.00013698,2]
[334837855,1723607435390,-891.66272068,0.00013698,2]
[334837856,1723607435400,-2468.39,0.00013698,2]
[334837857,1723607435410,-500.0,0.00013698,2]
[334837858,1723607435419,-500.0,0.00013698,2]
[334837859,1723607435429,-597.01403217,0.00013698,2]
[334837860,1723607435441,-140.23596783,0.00013698,2]
[334837861,1723607435451,-771.22403217,0.00013698,2]
[334837862,1723607435463,-219.43596783,0.00013698,2]
[334837863,1723607435472,-836.37,0.00013698,2]
[334837864,1723607435482,-246.98715126,0.00013698,2]
[334837865,1723607435494,-405.07284874,0.00013698,2]
[334837866,1723607435504,-1124.45,0.00013698,2]
[334837867,1723607435513,-617.29,0.00013698,2]
[334837868,1723607435523,-657.84,0.00013698,2]
[334837869,1723607435533,-1513.15,0.00013698,2]
[334837870,1723607435542,-1128.09,0.00013698,2]
[334837871,1723607435552,-500.0,0.00013698,2]
[334837872,1723607435561,-1593.05,0.00013698,2]
[334837873,1723607435571,-1465.45,0.00013698,2]
[334837874,1723607435580,-512.37,0.00013698,2]
[334837875,1723607435590,-500.0,0.00013698,2]
[334837876,1723607435602,-500.0,0.00013698,2]
[334837877,1723607435611,-1433.68,0.00013698,2]
[334837878,1723607435620,-1436.38,0.00013698,2]
[334837879,1723607435630,-566.62,0.00013698,2]
[334837880,1723607435640,-500.0,0.00013698,2]
[334837881,1723607435649,-500.0,0.00013698,2]
[334837882,1723607435659,-500.0,0.00013698,2]
[334837883,1723607435669,-980.27,0.00013698,2]
[334837884,1723607435679,-1757.62,0.00013698,2]
[334837885,1723607435688,-500.0,0.00013698,2]
[334837886,1723607435698,-1090.22,0.00013698,2]
[334837887,1723607435707,-2446.57,0.00013698,2]
[334837888,1723607435716,-2344.16,0.00013698,2]
[334837889,1723607435726,-1451.81,0.00013698,2]
[334837890,1723607435735,-500.0,0.00013698,2]
[334837891,1723607435744,-500.0,0.00013698,2]
[334837892,1723607435753,-1919.8,0.00013698,2]
[334837893,1723607435763,-850.36,0.00013698,2]
[334837894,1723607435772,-4803.192,0.00013698,2]
[334837895,1723607435782,-500.0,0.00013698,2]
[334837896,1723607435790,-743.85,0.00013698,2]
[334837897,1723607435800,-2805.57,0.00013698,2]
[334837898,1723607435809,-713.35,0.00013698,2]
[334837899,1723607435818,-536.68,0.00013698,2]
[334837900,1723607435827,-654.34,0.00013698,2]
[334837901,1723607435836,-557.78,0.00013698,2]
[334837902,1723607435846,-500.0,0.00013698,2]
[334837903,1723607435856,-500.0,0.00013698,2]
[334837904,1723607435865,-738.54,0.00013698,2]
[334837905,1723607435874,-1222.0,0.00013698,2]
[334837906,1723607435884,-500.0,0.00013698,2]
[334837907,1723607435892,-3268.85,0.00013698,2]
[334837908,1723607435902,-1232.17,0.00013698,2]
[334837909,1723607435910,-759.17,0.00013698,2]
[334837910,1723607435920,-1276.5,0.00013698,2]
[334837911,1723607435929,-1227.19,0.00013698,2]
[334837912,1723607435938,-660.75,0.00013698,2]
[334837913,1723607435947,-500.0,0.00013698,2]
[334837914,1723607435956,-1099.44,0.00013698,2]
[334837915,1723607435966,-500.0,0.00013698,2]
[334837916,1723607435975,-2090.28,0.00013698,2]
[334837917,1723607435984,-500.0,0.00013698,2]
[334837918,1723607435993,-288.8779591,0.00013698,2]
[334837919,1723607436002,-500.0,0.00013698,2]
[334837920,1723607436012,-508.15,0.00013698,2]
[334837921,1723607436021,-500.0,0.00013698,2]
[334837922,1723607436030,-500.0,0.00013698,2]
[334837923,1723607436039,-500.0,0.00013698,2]
[334837924,1723607436048,-793.09,0.00013698,2]
[334837925,1723607436057,-500.0,0.00013698,2]
[334837926,1723607436066,-500.0,0.00013698,2]
[334837927,1723607436074,-500.0,0.00013698,2]
[334837928,1723607436084,-1244.25,0.00013698,2]
[334837929,1723607436093,-808.2,0.00013698,2]
[334837930,1723607436110,-1870.71,0.00013698,2]
[334837931,1723607436119,-500.0,0.00013698,2]
[334837932,1723607436128,-500.0,0.00013698,2]
[334837933,1723607436137,-1020.02,0.00013698,2]
[334837934,1723607436147,-1386.1,0.00013698,2]
[334837935,1723607436156,-732.86,0.00013698,2]
[334837936,1723607436165,-500.0,0.00013698,2]
[334837937,1723607436174,-500.0,0.00013698,2]
[334837938,1723607436184,-500.0,0.00013698,2]
[334837939,1723607436194,-1778.14,0.00013698,2]
[334837940,1723607436202,-400.0,0.00013698,2]
[334837941,1723607436212,-1254.8,0.00013698,2]
[334837942,1723607436221,-2294.9,0.00013698,2]
[334837943,1723607436230,-1000.0,0.00013698,2]
[334837944,1723607436240,-500.0,0.00013698,2]
[334837945,1723607436249,-1685.71,0.00013698,2]
[334837946,1723607436258,-1045.4,0.00013698,2]
[334837947,1723607436267,-769.79,0.00013698,2]
[334837948,1723607436276,-578.86886052,0.00013698,2]
[334837949,1723607436286,-500.0,0.00013698,2]
[334837950,1723607436296,-829.12,0.00013698,2]
[334837951,1723607436305,-500.0,0.00013698,2]
[334837952,1723607436315,-1819.06,0.00013698,2]
[334837953,1723607436324,-584.66,0.00013698,2]
[334837954,1723607436332,-865.12,0.00013698,2]
[334837955,1723607436342,-1828.3,0.00013698,2]
[334837956,1723607436352,-1487.62,0.00013698,2]
[334837957,1723607436361,-1120.95,0.00013698,2]
[334837958,1723607436370,-1122.91,0.00013698,2]
[334837959,1723607436380,-862.4,0.00013698,2]
[334837960,1723607436390,-849.24,0.00013698,2]
[334837961,1723607436399,-1564.47,0.00013698,2]
[334837962,1723607436408,-500.0,0.00013698,2]
[334837963,1723607436418,-866.92,0.00013698,2]
[334837964,1723607436427,-540.84536532,0.00013698,2]
[334837965,1723607436437,-500.0,0.00013698,2]
[334837966,1723607436447,-500.0,0.00013698,2]
[334837967,1723607436456,-1212.45,0.00013698,2]
[334837968,1723607436465,-1055.57,0.00013698,2]
[334837969,1723607436474,-2613.0,0.00013698,2]
[334837970,1723607436483,-1994.05,0.00013698,2]
[334837971,1723607436493,-857.51,0.00013698,2]
[334837972,1723607436502,-1338.26,0.00013698,2]
[334837973,1723607436512,-1351.32,0.00013698,2]
[334837974,1723607436521,-500.0,0.00013698,2]
[334837975,1723607436531,-500.0,0.00013698,2]
[334837976,1723607436540,-2029.71,0.00013698,2]
[334837977,1723607436550,-1111.34,0.00013698,2]
[334837978,1723607436559,-500.0,0.00013698,2]
[334837979,1723607436569,-500.0,0.00013698,2]
[334837980,1723607436579,-500.0,0.00013698,2]
[334837981,1723607436589,-3777.94,0.00013698,2]
[334837982,1723607436598,-500.0,0.00013698,2]
[334837983,1723607436607,-921.58,0.00013698,2]
[334837984,1723607436616,-689.07,0.00013698,2]
[334837985,1723607436626,-500.0,0.00013698,2]
[334837986,1723607436635,-833.34,0.00013698,2]
[334837987,1723607436644,-500.0,0.00013698,2]
[334837988,1723607436654,-500.0,0.00013698,2]
[334837989,1723607436663,-589.77,0.00013698,2]
[334837990,1723607436672,-500.0,0.00013698,2]
[334837991,1723607436682,-568.61,0.00013698,2]
[334837992,1723607436691,-500.0,0.00013698,2]
[334837993,1723607436700,-500.0,0.00013698,2]
[334837994,1723607436710,-1554.5,0.00013698,2]
[334837995,1723607436719,-500.0,0.00013698,2]
[334837996,1723607436729,-500.0,0.00013698,2]
[334837997,1723607436738,-1921.5,0.00013698,2]
[334837998,1723607436748,-500.0,0.00013698,2]
[334837999,1723607436757,-500.0,0.00013698,2]
[334838000,1723607436766,-783.79,0.00013698,2]
[334838001,1723607436776,-273.56172075,0.00013698,2]
[334838002,1723607436785,-498.78317691,0.00013698,2]
[334838003,1723607436794,-604.90620543,0.00013698,2]
[334838004,1723607436803,-2631.07,0.00013698,2]
[334838005,1723607436812,-500.0,0.00013698,2]
[334838006,1723607436821,-598.04005908,0.00013698,2]
[334838007,1723607436831,-500.0,0.00013698,2]
[334838008,1723607436840,-500.0,0.00013698,2]
[334838009,1723607436851,-500.0,0.00013698,2]
[334838010,1723607436860,-505.7,0.00013698,2]
[334838011,1723607436870,-500.0,0.00013698,2]
[334838012,1723607436879,-573.43,0.00013698,2]
[334838013,1723607436889,-1200.87,0.00013698,2]
[334838014,1723607436899,-500.0,0.00013698,2]
[334838015,1723607436909,-592.75,0.00013698,2]
[334838016,1723607436919,-1361.66,0.00013698,2]
[334838017,1723607436928,-2549.22,0.00013698,2]
[334838018,1723607436938,-498.89012293,0.00013698,2]
[334838019,1723607436947,-500.0,0.00013698,2]
[334838020,1723607436956,-500.0,0.00013698,2]
[334838021,1723607436966,-1917.84,0.00013698,2]
[334838022,1723607436975,-965.13,0.00013698,2]
[334838023,1723607436985,-1397.22,0.00013698,2]
[334838024,1723607436994,-500.0,0.00013698,2]
[334838025,1723607437003,-1460.11,0.00013698,2]
[334838026,1723607437013,-2325.52,0.00013698,2]
[334838027,1723607437022,-500.0,0.00013698,2]
[334838028,1723607437031,-500.0,0.00013698,2]
[334838029,1723607437040,-500.0,0.00013698,2]
[334838030,1723607437049,-500.0,0.00013698,2]
[334838031,1723607437058,-844.41,0.00013698,2]
[334838032,1723607437068,-764.1,0.00013698,2]
[334838033,1723607437077,-1274.82,0.00013698,2]
[334838034,1723607437086,-500.0,0.00013698,2]
[334838035,1723607437096,-1259.41,0.00013698,2]
[334838036,1723607437110,-500.0,0.00013698,2]
[334838037,1723607437119,-500.0,0.00013698,2]
[334838038,1723607437128,-500.0,0.00013698,2]
[334838039,1723607437137,-500.0,0.00013698,2]
[334838040,1723607437148,-851.27,0.00013698,2]
[334838041,1723607437157,-929.25,0.00013698,2]
[334838042,1723607437168,-2127.39,0.00013698,2]
[334838043,1723607437177,-883.88,0.00013698,2]
[334838044,1723607437187,-512.16,0.00013698,2]
[334838045,1723607437197,-589.33,0.00013698,2]
[334838046,1723607437206,-500.0,0.00013698,2]
[334838047,1723607437215,-1891.32,0.00013698,2]
[334838048,1723607437224,-500.0,0.00013698,2]
[334838049,1723607437233,-168.71571349,0.00013698,2]
[334838050,1723607437243,-1630.74,0.00013698,2]
[334838051,1723607437252,-2624.85,0.00013698,2]
[334838052,1723607437262,-498.85903382,0.00013698,2]
[334838053,1723607437271,-2240.02,0.00013698,2]
[334838054,1723607437280,-2114.43,0.00013698,2]
[334838055,1723607437290,-500.0,0.00013698,2]
[334838056,1723607437299,-500.0,0.00013698,2]
[334838057,1723607437308,-2489.36,0.00013698,2]
[334838058,1723607437317,-499.2,0.00013698,2]
[334838059,1723607437327,-1834.05,0.00013698,2]
[334838060,1723607437337,-514.91,0.00013698,2]
[334838061,1723607437346,-500.0,0.00013698,2]
[334838062,1723607437358,-530.28,0.00013698,2]
[334838063,1723607437367,-500.0,0.00013698,2]
[334838064,1723607437377,-500.0,0.00013698,2]
[334838065,1723607437387,-500.0,0.00013698,2]
[334838066,1723607437396,-657.56,0.00013698,2]
[334838067,1723607437406,-580.46,0.00013698,2]
[334838068,1723607437415,-500.0,0.00013698,2]
[334838069,1723607437425,-1292.57,0.00013698,2]
[334838070,1723607437435,-500.0,0.00013698,2]
[334838071,1723607437446,-2155.23,0.00013698,2]
[334838072,1723607437455,-500.0,0.00013698,2]
[334838073,1723607437464,-729.49,0.00013698,2]
[334838074,1723607437473,-803.11,0.00013698,2]
[334838075,1723607437483,-253.18509428,0.00013698,2]
[334838076,1723607437492,-500.0,0.00013698,2]
[334838077,1723607437501,-500.0,0.00013698,2]
[334838078,1723607437510,-500.0,0.00013698,2]
[334838079,1723607437519,-347.15114297,0.00013698,2]
[334838080,1723607437528,-784.66,0.00013698,2]
[334838081,1723607437538,-347.08370883,0.00013698,2]
[334838082,1723607437547,-500.0,0.00013698,2]
[334838083,1723607437557,-985.66,0.00013698,2]
[334838084,1723607437566,-1484.83,0.00013698,2]
[334838085,1723607437576,-558.89,0.00013698,2]
[334838086,1723607437585,-500.0,0.00013698,2]
[334838087,1723607437594,-1171.57,0.00013698,2]
[334838088,1723607437605,-500.0,0.00013698,2]
[334838089,1723607437614,-500.0,0.00013698,2]
[334838090,1723607437624,-961.68,0.00013698,2]
[334838091,1723607437634,-1433.08,0.00013698,2]
[334838092,1723607437643,-644.74,0.00013698,2]
[334838093,1723607437653,-544.66,0.00013698,2]
[334838094,1723607437662,-1605.56,0.00013698,2]
[334838095,1723607437672,-500.0,0.00013698,2]
[334838096,1723607437681,-500.0,0.00013698,2]
[334838098,1723607437691,-671.88,0.00013698,2]
[334838099,1723607437701,-500.0,0.00013698,2]
[334838100,1723607437711,-966.64,0.00013698,2]
[334838101,1723607437720,-1438.91,0.00013698,2]
[334838102,1723607437729,-3279.05,0.00013698,2]
[334838103,1723607437739,-1269.61,0.00013698,2]
[334838104,1723607437749,-2431.77,0.00013698,2]
[334838105,1723607437759,-1897.29,0.00013698,2]
[334838106,1723607437769,-500.0,0.00013698,2]
[334838107,1723607437778,-500.0,0.00013698,2]
[334838108,1723607437787,-1900.43,0.00013698,2]
[334838109,1723607437797,-2321.53,0.00013698,2]
[334838110,1723607437806,-500.0,0.00013698,2]
[334838111,1723607437816,-500.0,0.00013698,2]
[334838112,1723607437826,-1225.74,0.00013698,2]
[334838113,1723607437835,-751.13,0.00013698,2]
[334838114,1723607437844,-500.0,0.00013698,2]
[334838115,1723607437854,-500.0,0.00013698,2]
[334838116,1723607437865,-2710.3,0.00013698,2]
[334838117,1723607437875,-500.0,0.00013698,2]
[334838118,1723607437885,-590.22,0.00013698,2]
[334838119,1723607437895,-500.0,0.00013698,2]
[334838120,1723607437904,-1784.2,0.00013698,2]
[334838121,1723607437914,-1096.21,0.00013698,2]
[334838122,1723607437925,-500.0,0.00013698,2]
[334838123,1723607437935,-500.0,0.00013698,2]
[334838124,1723607437945,-500.0,0.00013698,2]
[334838125,1723607437955,-500.0,0.00013698,2]
[334838126,1723607437965,-500.0,0.00013698,2]
[334838127,1723607437975,-500.0,0.00013698,2]
[334838128,1723607437985,-500.0,0.00013698,2]
[334838129,1723607437995,-500.0,0.00013698,2]
[334838130,1723607438006,-843.23,0.00013698,2]
[334838131,1723607438016,-630.2,0.00013698,2]
[334838132,1723607438026,-500.0,0.00013698,2]
[334838133,1723607438036,-500.0,0.00013698,2]
[334838134,1723607438047,-2211.05,0.00013698,2]
[334838135,1723607438056,-500.0,0.00013698,2]
[334838136,1723607438066,-237.3254274,0.00013698,2]
[334838137,1723607438076,-500.0,0.00013698,2]
[334838138,1723607438086,-500.0,0.00013698,2]
[334838139,1723607438095,-1522.48,0.00013698,2]
[334838140,1723607438109,-500.0,0.00013698,2]
[334838141,1723607438119,-500.0,0.00013698,2]
[334838142,1723607438128,-913.08,0.00013698,2]
[334838143,1723607438138,-648.5,0.00013698,2]
[334838144,1723607438149,-1893.09,0.00013698,2]
[334838145,1723607438158,-500.0,0.00013698,2]
[334838146,1723607438167,-593.38880345,0.00013698,2]
[334838147,1723607438177,-915.27,0.00013698,2]
[334838148,1723607438187,-500.0,0.00013698,2]
[334838149,1723607438197,-3275.38,0.00013698,2]
[334838150,1723607438207,-2186.94,0.00013698,2]
[334838151,1723607438216,-500.0,0.00013698,2]
[334838152,1723607438226,-500.0,0.00013698,2]
[334838153,1723607438236,-500.0,0.00013698,2]
[334838154,1723607438245,-500.0,0.00013698,2]
[334838155,1723607438255,-1677.03,0.00013698,2]
[334838156,1723607438264,-1309.3,0.00013698,2]
[334838157,1723607438274,-856.83,0.00013698,2]
[334838158,1723607438284,-500.0,0.00013698,2]
[334838159,1723607438293,-500.0,0.00013698,2]
[334838160,1723607438304,-1252.5,0.00013698,2]
[334838161,1723607438313,-500.0,0.00013698,2]
[334838162,1723607438322,-500.0,0.00013698,2]
[334838163,1723607438332,-500.0,0.00013698,2]
[334838164,1723607438342,-500.0,0.00013698,2]
[334838165,1723607438355,-500.0,0.00013698,2]
[334838166,1723607438365,-500.0,0.00013698,2]
[334838167,1723607438375,-794.25,0.00013698,2]
[334838168,1723607438384,-1414.57,0.00013698,2]
[334838169,1723607438394,-500.0,0.00013698,2]
[334838170,1723607438403,-3148.01,0.00013698,2]
[334838171,1723607438412,-1119.98,0.00013698,2]
[334838172,1723607438422,-696.1,0.00013698,2]
[334838174,1723607438432,-156.28903491,0.00013698,2]
[334838176,1723607438442,-500.0,0.00013698,2]
[334838178,1723607438451,-500.0,0.00013698,2]
[334838180,1723607438461,-3372.08,0.00013698,2]
[334838182,1723607438470,-3112.45,0.00013698,2]
[334838184,1723607438481,-500.0,0.00013698,2]
[334838186,1723607438490,-500.0,0.00013698,2]
[334838188,1723607438499,-1053.98,0.00013698,2]
[334838189,1723607438509,-500.0,0.00013698,2]
[334838191,1723607438520,-1421.12,0.00013698,2]
[334838193,1723607438530,-500.0,0.00013698,2]
[334838195,1723607438540,-6656.08,0.00013698,2]
[334838197,1723607438550,-863.04,0.00013698,2]
[334838199,1723607438560,-640.54,0.00013698,2]
[334838201,1723607438570,-1185.24,0.00013698,2]
[334838203,1723607438581,-500.0,0.00013698,2]
[334838204,1723607438590,-500.0,0.00013698,2]
[334838205,1723607438601,-1337.92,0.00013698,2]
[334838206,1723607438610,-500.0,0.00013698,2]
[334838207,1723607438620,-500.0,0.00013698,2]
[334838209,1723607438629,-881.61,0.00013698,2]
[334838210,1723607438639,-2019.13,0.00013698,2]
[334838211,1723607438649,-500.0,0.00013698,2]
[334838212,1723607438658,-500.0,0.00013698,2]
[334838213,1723607438668,-506.13124613,0.00013698,2]
[334838214,1723607438678,-4803.1,0.00013698,2]
[334838215,1723607438687,-548.08,0.00013698,2]
[334838216,1723607438697,-500.0,0.00013698,2]
[334838217,1723607438706,-3535.74,0.00013698,2]
[334838219,1723607438716,-500.0,0.00013698,2]
[334838220,1723607438726,-500.0,0.00013698,2]
[334838221,1723607438735,-500.0,0.00013698,2]
[334838222,1723607438744,-500.0,0.00013698,2]
[334838224,1723607438754,-1286.34,0.00013698,2]
[334838226,1723607438764,-500.0,0.00013698,2]
[334838227,1723607438774,-700.94,0.00013698,2]
[334838229,1723607438784,-500.0,0.00013698,2]
[334838231,1723607438793,-500.0,0.00013698,2]
[334838233,1723607438803,-500.0,0.00013698,2]
[334838235,1723607438812,-605.71,0.00013698,2]
[334838237,1723607438822,-500.0,0.00013698,2]
[334838239,1723607438831,-500.0,0.00013698,2]
[334838240,1723607438840,-500.0,0.00013698,2]
[334838242,1723607438851,-500.0,0.00013698,2]
[334838244,1723607438861,-500.0,0.00013698,2]
[334838246,1723607438870,-2533.03,0.00013698,2]
[334838248,1723607438879,-655.89,0.00013698,2]
[334838250,1723607438889,-528.71,0.00013698,2]
[334838251,1723607438899,-500.0,0.00013698,2]
[334838253,1723607438908,-11621.75,0.00013698,2]
[334838254,1723607438917,-500.0,0.00013698,2]
[334838255,1723607438927,-694.17,0.00013698,2]
[334838256,1723607438936,-500.0,0.00013698,2]
[334838257,1723607438945,-7712.44,0.00013698,2]
[334838258,1723607439070,-1287.07,0.00013698,2]
[334838259,1723607439091,-764.7,0.00013698,2]
[334838260,1723607439103,-826.02,0.00013698,2]
[334838261,1723607439114,-500.0,0.00013698,2]
[334838262,1723607439123,-3051.08,0.00013698,2]
[334838263,1723607439133,-500.0,0.00013698,2]
[334838264,1723607439142,-2301.35,0.00013698,2]
[334838265,1723607439154,-629.26457703,0.00013698,2]
[334838266,1723607439164,-892.62,0.00013698,2]
[334838267,1723607439173,-500.0,0.00013698,2]
[334838268,1723607439184,-573.74,0.00013698,2]
[334838269,1723607439194,-500.0,0.00013698,2]
[334838270,1723607439204,-2659.42,0.00013698,2]
[334838271,1723607439213,-1107.8,0.00013698,2]
[334838272,1723607439223,-1861.4,0.00013698,2]
[334838273,1723607439232,-500.0,0.00013698,2]
[334838274,1723607439242,-2273.24,0.00013698,2]
[334838275,1723607439251,-4443.83,0.00013698,2]
[334838276,1723607439260,-2591.06,0.00013698,2]
[334838277,1723607439270,-500.0,0.00013698,2]
[334838278,1723607439279,-665.28,0.00013698,2]
[334838279,1723607439291,-618.25,0.00013698,2]
[334838280,1723607439300,-500.0,0.00013698,2]
[334838281,1723607439310,-757.85,0.00013698,2]
[334838282,1723607439319,-500.0,0.00013698,2]
[334838283,1723607439329,-500.0,0.00013698,2]
[334838284,1723607439338,-2359.68,0.00013698,2]
[334838285,1723607439348,-1206.64,0.00013698,2]
[334838286,1723607439357,-992.14,0.00013698,2]
[334838287,1723607439367,-616.31,0.00013698,2]
[334838288,1723607439376,-500.0,0.00013698,2]
[334838289,1723607439385,-500.0,0.00013698,2]
[334838290,1723607439394,-1728.26,0.00013698,2]
[334838291,1723607439404,-1436.09,0.00013698,2]
[334838292,1723607439414,-12983.85,0.00013698,2]
[334838293,1723607439423,-1282.64,0.00013698,2]
[334838294,1723607439433,-500.0,0.00013698,2]
[334838295,1723607439442,-1106.45,0.00013698,2]
[334838296,1723607439452,-1719.54,0.00013698,2]
[334838297,1723607439461,-500.0,0.00013698,2]
[334838298,1723607439471,-567.82,0.00013698,2]
[334838299,1723607439481,-1004.98,0.00013698,2]
[334838300,1723607439490,-21892.84,0.00013698,2]
[334838301,1723607439500,-1425.33,0.00013698,2]
[334838302,1723607439510,-500.0,0.00013698,2]
[334838303,1723607439519,-500.0,0.00013698,2]
[334838304,1723607439529,-500.0,0.00013698,2]
[334838306,1723607439538,-794.39,0.00013698,2]
[334838307,1723607439548,-500.0,0.00013698,2]
[334838308,1723607439558,-500.0,0.00013698,2]
[334838309,1723607439567,-500.0,0.00013698,2]
[334838310,1723607439576,-1334.68,0.00013698,2]
[334838311,1723607439585,-947.71,0.00013698,2]
[334838312,1723607439594,-2185.69,0.00013698,2]
[334838313,1723607439604,-11265.49,0.00013698,2]
[334838314,1723607439613,-74311.05,0.00013698,2]
[334838315,1723607439623,-500.0,0.00013698,2]
[334838316,1723607439632,-1077.24889915,0.00013698,2]
[334838320,1723607440187,-415.98592689,0.00013698,2]
[334838531,1723607443517,-383.4,0.00011755,2]
[334838532,1723607443529,-281.25019099,0.00011755,2]
[334838533,1723607443543,-3446.95219159,0.00011755,2]
[334838534,1723607443555,-5888.39761742,0.00011755,2]
[334838535,1723607443565,-1031.0,0.00012665,2]
[334838536,1723607443575,-163.34208761,0.00013695,2]
[334838537,1723607443585,-1433.15517396,0.00013698,2]
[334838538,1723607443594,-558.46375105,0.00013698,2]
[334838539,1723607443605,-827.11,0.00013698,2]
[334838541,1723607443615,-684.84,0.00013698,2]
[334838542,1723607443625,-19652.25,0.00013698,2]
[334838543,1723607443635,-500.0,0.00013698,2]
[334838544,1723607443645,-949.5,0.00013698,2]
[334838545,1723607443655,-500.0,0.00013698,2]
[334838546,1723607443665,-500.0,0.00013698,2]
[334838547,1723607443674,-2325.77,0.00013698,2]
[334838548,1723607443684,-1060.07,0.00013698,2]
[334838549,1723607443695,-500.0,0.00013698,2]
[334838550,1723607443705,-931.34,0.00013698,2]
[334838551,1723607443715,-500.0,0.00013698,2]
[334838552,1723607443724,-9503.63026499,0.00013698,2]
[334838553,1723607443737,-358.005,0.00013698,2]
[334838554,1723607443749,-1909.31473501,0.00013698,2]
[334838555,1723607443759,-542.79,0.00013698,2]
[334838556,1723607443770,-3216.15,0.00013698,2]
[334838557,1723607443779,-996.72,0.00013698,2]
[334838558,1723607443789,-500.0,0.00013698,2]
[334838559,1723607443799,-500.0,0.00013698,2]
[334838560,1723607443809,-500.0,0.00013698,2]
[334838561,1723607443819,-864.22,0.00013698,2]
[334838562,1723607443828,-1090.63,0.00013698,2]
[334838563,1723607443838,-500.0,0.00013698,2]
[334838564,1723607443847,-94.14101155,0.00013698,2]
[334838565,1723607443860,-660.54898845,0.00013698,2]
[334838566,1723607443870,-500.0,0.00013698,2]
[334838567,1723607443880,-3259.51350732,0.00013698,2]
[334838568,1723607443984,-882.93649268,0.00013698,2]
[334838569,1723607443993,-500.0,0.00013698,2]
[334838570,1723607444003,-3126.76350732,0.00013698,2]
[334838571,1723607444019,-13182.39649268,0.00013698,2]
[334838572,1723607444028,-2654.22,0.00013698,2]
[334838573,1723607444038,-500.0,0.00013698,2]
[334838574,1723607444048,-25466.62,0.00013698,2]
[334838575,1723607444058,-4541.96,0.00013698,2]
[334838576,1723607444068,-500.0,0.00013698,2]
[334838577,1723607444078,-519.09,0.00013698,2]
[334838578,1723607444088,-500.0,0.00013698,2]
[334838579,1723607444097,-539.83,0.00013698,2]
[334838580,1723607444111,-500.0,0.00013698,2]
[334838581,1723607444121,-500.0,0.00013698,2]
[334838582,1723607444131,-889.01,0.00013698,2]
[334838583,1723607444142,-500.90513066,0.00013698,2]
[334838584,1723607444154,-500.0,0.00013698,2]
[334838585,1723607444164,-2396.89,0.00013698,2]
[334838586,1723607444173,-1347.69,0.00013698,2]
[334838587,1723607444185,-677.92,0.00013698,2]
[334838588,1723607444196,-500.0,0.00013698,2]
[334838589,1723607444206,-500.0,0.00013698,2]
[334838590,1723607444216,-6138.85,0.00013698,2]
[334838591,1723607444226,-9972.45,0.00013698,2]
[334838592,1723607444236,-1022.55,0.00013698,2]
[334838593,1723607444246,-809.32,0.00013698,2]
[334838594,1723607444257,-500.0,0.00013698,2]
[334838595,1723607444268,-642.44,0.00013698,2]
[334838596,1723607444278,-500.0,0.00013698,2]